Cogmind - Beta 10.2 @@@ ROGUE MODE // 2022.02.06 @ 22:05:24 Player: Burgers_Lettuce Result: Core destroyed Performance ------------- Evolutions (2) 1000 Regions Visited (4) 800 Robots Destroyed (26) 130 Value Destroyed (706) 706 Prototype IDs (0) 0 Alien Tech Used (0) 0 Bonus (-163) -163 TOTAL SCORE: 2473 Bonus ------- Follower Combat Kills 49 Friendly Fire -212 Cogmind --------- Core Integrity 0/550 Matter 267/300 Energy 92/100 System Corruption 0% Temperature Cool (0) Movement Core (50) Location -8/Materials Parts ------- > --- POWER (1) -------- (None) > --- PROPULSION (4) --- (None) > --- UTILITY (3) ------ (None) > --- WEAPON (3) ------- (None) > --- INVENTORY (4) ---- Light Ion Engine Medium Storage Unit Medium Storage Unit Visual Processing Unit Peak State ------------ > --- POWER ------------ Light Deuterium Engine > --- PROPULSION ------- Light Treads Light Treads Compact Wheel Compact Wheel > --- UTILITY ---------- Large Storage Unit High-capacity Battery Sensor Array > --- WEAPON ----------- Beamcaster Minigun Mini Grenade Launcher > --- INVENTORY -------- Light Ion Engine Aluminum Leg Aluminum Leg Aluminum Leg Medium Storage Unit Medium Storage Unit Visual Processing Unit Core Shielding [Rating: 20] Favorites ----------- Power Light Deuterium Engine Engine Light Deuterium Engine Propulsion Compact Wheel Treads Light Treads Leg Aluminum Leg Wheel Compact Wheel Flight Unit Cesium-ion Thruster Utility Sensor Array Device Sensor Array Storage Large Storage Unit Hackware System Shield Protection Core Shielding Weapon Minigun Energy Gun EM Pulse Gun Ballistic Gun Minigun Launcher Mini Grenade Launcher Build | -11 -10 -9 -9 -8 ------- Run | Scr Mat Mat Min Mat Slots Evolved 4 | . . 2 . 2 Power . | . . . . . Propulsion 2 | . . 1 . 1 Utility 1 | . . 1 . . Weapon 1 | . . . . 1 Parts Attached 49 | 6 14 19 1 9 Power 4 | 1 1 2 . . Engine 4 | 1 1 2 . . Core . | . . . . . Reactor . | . . . . . Propulsion 19 | 2 2 9 . 6 Treads 4 | . 1 1 . 2 Leg 9 | . 1 5 . 3 Wheel 5 | 2 . 3 . . Hover . | . . . . . Flight 1 | . . . . 1 Utility 10 | 1 4 3 . 2 Device 2 | . 2 . . . Storage 6 | 1 2 3 . . Processor . | . . . . . Hackware 1 | . . . . 1 Protection 1 | . . . . 1 Artifact . | . . . . . Weapon 16 | 2 7 5 1 1 Energy Gun 7 | . 4 2 1 . Energy Cannon . | . . . . . Ballistic Gun 7 | 2 3 2 . . Ballistic Cannon . | . . . . . Launcher 2 | . . 1 . 1 Special Weapon . | . . . . . Impact Weapon . | . . . . . Slashing Weapon . | . . . . . Piercing Weapon . | . . . . . Special Melee Weapon . | . . . . . Unidentified Prototypes . | . . . . . Parts Lost 24 | . 5 5 . 14 Power 3 | . 1 1 . 1 Propulsion 11 | . 2 2 . 7 Utility 3 | . . . . 3 Weapon 7 | . 2 2 . 3 Highest Loss Streak 11 | . 5 5 . 11 Average Slot Usage (%) 92 | . 97 89 100 52 Engine 11 | . 14 10 11 3 Treads 6 | . 11 7 . 7 Leg 11 | . 9 17 11 1 Wheel 11 | . 6 7 22 8 Device 10 | . 12 11 11 4 Storage 16 | . 15 14 22 10 Energy Gun 9 | . 19 7 3 3 Ballistic Gun 12 | . 8 12 18 3 Naked Turns . | . . . . . Heaviest Build 35 | 11 15 30 34 35 Greatest Support 40 | 26 26 32 32 40 Greatest Overweight (x) 7 | . 1 1 1 7 Average Overweight (x) . | . . . . . Largest Inventory Capacity 14 | 6 8 14 10 10 Average Capacity 8 | 5 6 10 10 7 Most Carried 10 | 5 8 10 10 10 Average Carried 7 | 3 5 8 10 6 Final Capacity 10 | 6 8 10 10 4 Final Carried 10 | 5 8 10 10 4 Class Distribution -------------------- 97% | Mutant Dominant Class ---------------- Mutant | -10/Materials Mutant | -9/Materials Mutant | -9/Mines Mutant | -8/Materials Resources | -11 -10 -9 -9 -8 ----------- Run | Scr Mat Mat Min Mat Matter Collected 834 | 197 254 233 112 38 Remotely . | . . . . . Salvage Created 872 | . 333 393 10 136 Parts 48 | . 15 21 2 10 Haulers Intercepted . | . . . . . Recyclers Shooed 2 | . . 2 . . Parts Field Recycled . | . . . . . Retrieved Matter . | . . . . . Parts Self-Destructed . | . . . . . Prevented . | . . . . . Kills | -11 -10 -9 -9 -8 ------- Run | Scr Mat Mat Min Mat Combat Hostiles Destroyed 22 | . 10 8 1 3 Guns 19 | . 9 8 1 1 AOE 3 | . 1 . . 2 Classes Destroyed 6 | . 2 3 . 1 Recycler 1 | . . 1 . . Watcher 1 | . . 1 . . Swarmer 7 | . 3 3 1 . Grunt 14 | . 7 3 . 4 Sentry 2 | . . 2 . . Zionite 1 | . . . . 1 Best Kill Streak 6 | . 6 5 1 3 Combat Bots Only 6 | . 6 4 1 3 Max Kills in Single Turn 3 | . 1 1 1 3 Gunslinging . | . . . . . Exploded 1 | . 1 . . 1 Melee . | . . . . . Uniques/NPCs Destroyed . | . . . . . Combat | -11 -10 -9 -9 -8 -------- Run | Scr Mat Mat Min Mat Damage Taken 2784 | . 621 698 6 1459 Core 756 | . 86 109 6 555 Absorbed by Shields . | . . . . . Core Remaining (%) 78 | 100 65 . 71 . Volleys Fired 69 | 1 31 33 1 3 Largest 3 | 2 2 2 2 3 Hottest 130 | 40 80 80 45 130 Shots Fired 137 | 2 61 64 2 8 Gun 134 | 2 61 64 2 5 Cannon . | . . . . . Launcher 3 | . . . . 3 Special . | . . . . . Kinetic 90 | 2 34 49 2 3 Thermal 16 | . 9 5 . 2 Explosive 3 | . . . . 3 Electromagnetic 28 | . 18 10 . . Robot Hit Streak 14 | 1 14 13 . 2 Robot Miss Streak 4 | 1 2 2 2 4 Penetration Max . | . . . . . Secondary Targets 2 | . 1 1 . . Max Gunslinging Chain 1 | . 1 1 . . Shots Hit Robots 100 | 1 46 51 . 2 Core Hits 50 | . 18 17 1 14 Critical Hits . | . . . . . Critical Kills . | . . . . . Critical Parts Destroyed . | . . . . . Melee Attacks . | . . . . . Impact . | . . . . . Slashing . | . . . . . Piercing . | . . . . . Sneak Attacks . | . . . . . Combat Hostiles . | . . . . . Follow-up Attacks . | . . . . . Damage Inflicted 1756 | 12 651 670 15 408 Guns 1278 | 12 546 670 15 35 Cannons . | . . . . . Explosions 464 | . 105 . . 359 Melee . | . . . . . Ramming 14 | . . . . 14 Kinetic 956 | 12 373 541 15 15 Thermal 168 | . 117 31 . 20 Explosive 359 | . . . . 359 Electromagnetic 259 | . 161 98 . . Impact . | . . . . . Slashing . | . . . . . Piercing . | . . . . . Highest Corruption . | . . . . . Average Corruption . | . . . . . Corruption Purged . | . . . . . Overload Shots . | . . . . . Overflow Damage . | . . . . . Projectiles . | . . . . . Explosions . | . . . . . Melee . | . . . . . Knockbacks . | . . . . . Impact . | . . . . . Kinetic . | . . . . . Secondary . | . . . . . Self-Inflicted Damage 7 | . . . . 7 Shots . | . . . . . Rammed 2 | . . . . 2 Targets Rammed 2 | . . . . 2 Kicked . | . . . . . Crushed . | . . . . . Highest Temperature 171 | . 99 86 . 171 Average Temperature 36 | . 33 30 . 71 Received Heat Transfer 1104 | . 282 246 . 576 Siege Activations . | . . . . . Robots Corrupted . | . . . . . Combat Hostiles . | . . . . . Parts Fried . | . . . . . Impact Corruptions . | . . . . . Robots Melted . | . . . . . Combat Hostiles . | . . . . . Parts Melted . | . . . . . Heat Transferred 287 | . 175 75 . 37 Parts Sabotaged . | . . . . . Parts Stolen . | . . . . . Parts Stripped . | . . . . . Power Chain Reactions 2 | . 2 . . . Missiles Intercepted . | . . . . . Alert | -11 -10 -9 -9 -8 ------- Run | Scr Mat Mat Min Mat Peak Influence 342 | . 270 342 181 105 Initial 90 | . . 90 55 48 Average 133 | . 165 170 102 47 Maximum Alert Level 1 | . 1 1 . . Low Security (%) 72 | 100 45 60 100 100 Level 1 27 | . 54 39 . . Level 2 . | . . . . . Level 3 . | . . . . . Level 4 . | . . . . . Level 5 . | . . . . . High Security . | . . . . . Max Security . | . . . . . Squads Dispatched 9 | . 3 1 . 5 Investigation 2 | . 2 . . . Extermination . | . . . . . Reinforcement 6 | . 1 1 . 4 Assault . | . . . . . Garrison 1 | . . . . 1 Intercept . | . . . . . Construction Impeded . | . . . . . Haulers Reinforced . | . . . . . Stealth | -11 -10 -9 -9 -8 --------- Run | Scr Mat Mat Min Mat Distress Signals 1 | . 1 . . . Communications Jammed . | . . . . . Distress Signals . | . . . . . Times Spotted 69 | . 24 16 8 21 Peak Tracking Total 12 | . 9 6 4 12 Tactical Retreats 9 | . 8 . . 1 Traps | -11 -10 -9 -9 -8 ------- Run | Scr Mat Mat Min Mat Traps Triggered 2 | . 2 . . . Indirectly . | . . . . . Trap Hack Attempts . | . . . . . Triggered . | . . . . . Disarmed . | . . . . . Reprogrammed . | . . . . . Reused . | . . . . . Traps Extracted . | . . . . . Installed . | . . . . . Triggered . | . . . . . Machines | -11 -10 -9 -9 -8 ---------- Run | Scr Mat Mat Min Mat Machines Disabled 3 | . 1 1 . 1 Max in Single Turn 1 | . 1 1 . . Machines Sabotaged . | . . . . . Garrisons Compromised . | . . . . . Overloaded Fab Kills . | . . . . . Fab Network Shutdowns . | . . . . . Hacking | -11 -10 -9 -9 -8 --------- Run | Scr Mat Mat Min Mat Machines Accessed 2 | . . 1 . 1 Terminals 1 | . . . . 1 Fabricators . | . . . . . Repair Stations 1 | . . 1 . . Recycling Units . | . . . . . Scanalyzers . | . . . . . Garrison Access . | . . . . . Total Hacks 3 | . . 2 . 1 Successful 2 | . . 2 . . Failed 1 | . . . . 1 Catastrophic . | . . . . . Database Lockouts . | . . . . . Manual 1 | . . . . 1 Terminals 1 | . . . . 1 Fabricators . | . . . . . Repair Stations 2 | . . 2 . . Recycling Units . | . . . . . Scanalyzers . | . . . . . Garrison Access . | . . . . . Terminal Hacks . | . . . . . Fabricator Hacks . | . . . . . Repair Station Hacks 2 | . . 2 . . Scan Component 1 | . . 1 . . Repair 1 | . . 1 . . Recycling Unit Hacks . | . . . . . Scanalyzer . | . . . . . Garrison Access Hacks . | . . . . . Unauthorized Hacks . | . . . . . Terminals . | . . . . . Fabricators . | . . . . . Repair Stations . | . . . . . Recycling Units . | . . . . . Scanalyzers . | . . . . . Garrison Access . | . . . . . Data Cores Recovered . | . . . . . Used . | . . . . . Hacking Detections 2 | . . 1 . 1 Full Trace Events . | . . . . . Feedback Events . | . . . . . Feedback Blocked . | . . . . . Robot Schematics Acquired . | . . . . . Robots Built . | . . . . . Matter . | . . . . . Time . | . . . . . Total Robot Build Rating . | . . . . . Part Schematics Acquired . | . . . . . Parts Built . | . . . . . Matter . | . . . . . Time . | . . . . . Total Part Build Rating . | . . . . . Parts Repaired 1 | . . 1 . . Time 26 | . . 26 . . Parts Recycled . | . . . . . Recycled Matter . | . . . . . Retrieved Matter . | . . . . . Retrieved Components . | . . . . . Parts Scanalyzed . | . . . . . Part Schematics Acquired . | . . . . . Parts Damaged . | . . . . . Bothacking | -11 -10 -9 -9 -8 ------------ Run | Scr Mat Mat Min Mat Used RIF Installer . | . . . . . Robots Hacked . | . . . . . Non-combat . | . . . . . Combat . | . . . . . Robot Hacks Applied . | . . . . . Relay Couplers Released . | . . . . . Robots Rewired . | . . . . . Allies Hacked . | . . . . . Hacks Repelled . | . . . . . Allies | -11 -10 -9 -9 -8 -------- Run | Scr Mat Mat Min Mat Total Allies 6 | . . . 6 . Largest Group 6 | . . . 6 5 Highest-Rated Group 116 | . . . 116 80 Highest-Rated Ally 31 | . . . 31 26 Total Orders . | . . . . . Ally Attacks 28 | . . . 24 4 Total Damage 380 | . . . 339 41 Kills 7 | . . . 7 . Allies Corrupted . | . . . . . Allies Melted . | . . . . . Intel | -11 -10 -9 -9 -8 ------- Run | Scr Mat Mat Min Mat Robot Analysis Total . | . . . . . Derelict Logs Recovered 1 | . . . 1 . Drone Launches . | . . . . . Drone Recoveries . | . . . . . Exploration | -11 -10 -9 -9 -8 ------------- Run | Scr Mat Mat Min Mat Turns Passed 1709 | 55 558 432 548 116 Spaces Moved 1007 | 43 309 167 402 86 Core 49 | 5 . . . 44 Treads 29 | . 7 . . 22 Legs 290 | . 210 75 . 5 Wheels 632 | 38 92 92 402 8 Hover . | . . . . . Flight 7 | . . . . 7 Fastest Speed 40 | 50 90 100 100 40 Average Speed 112 | 85 131 117 102 92 Slowest Speed 400 | 90 160 150 110 400 Overloaded Moves . | . . . . . Propulsion Burnouts . | . . . . . Robots Hopped 2 | . . . . 2 Cave-ins Triggered . | . . . . . Exploration Rate (%) 29 | 3 40 18 72 13 Regions Visited 4 Branch Regions 1 Pre-discovered Areas 1 | . . . 1 . Known Exits Taken . | . . . . . Unknown Exits Taken 4 | 1 1 1 1 . Scrap Searched 1 | . . . 1 . Spaces Dug . | . . . . . Terrain Destroyed 24 | . 6 . . 18 Melee . | . . . . . Projectile . | . . . . . AOE 24 | . 6 . . 18 Terrain Rammed . | . . . . . Walls Destroyed . | . . . . . Machines Disabled . | . . . . . Actions | -11 -10 -9 -9 -8 --------- Run | Scr Mat Mat Min Mat Total 1454 | 58 402 345 536 113 Wait 292 | . 36 110 132 14 Move 1000 | 42 308 166 401 83 Hop 1 | . . . . 1 Pick Up 30 | 9 9 12 . . Fast Attach 7 | 2 1 1 1 2 Attach 25 | 4 6 9 . 6 Detach 1 | . . 1 . . Swap 17 | . 7 9 . 1 Drop 11 | . 4 4 1 2 Fire 69 | 1 31 33 1 3 Melee . | . . . . . Ram 1 | . . . . 1 Kick . | . . . . . Crush . | . . . . . Escape Stasis . | . . . . . Rewire . | . . . . . Trap . | . . . . . Miscellaneous . | . . . . . Route ------- -11/Scrapyard -10/Materials -9/Materials -9/Mines -8/Materials History --------- Turn | Location | Event 12 | -11/Scrapyard | Discovered new exit (range 15) 56 | -11/Scrapyard | Entered Materials 216 | -10/Materials | Lost 5 parts (1p2n2w) 306 | -10/Materials | Build established: Mutant 572 | -10/Materials | Discovered new exit (range 16) 614 | -10/Materials | Entered another Materials area 614 | -9/Materials | Evolved 2 slots: Propulsion x1, Utility x1 872 | -9/Materials | Lost 5 parts (1p2n2w) 1019 | -9/Materials | Repaired Com. Wheel 1033 | -9/Materials | Discovered new exit (range 14) 1046 | -9/Materials | Entered Mines 1093 | -9/Mines | Met a Derelict bent on vengeance 1096 | -9/Mines | Assisted by bots powering up and referring to "LRC-V3" 1245 | -9/Mines | Received a Mining Laser from a helpful Derelict 1525 | -9/Mines | Learned location of Storage (-8) 1525 | -9/Mines | Discovered new exit (range 5) 1594 | -9/Mines | Entered Materials 1594 | -8/Materials | Accompanied by 5 allies 1594 | -8/Materials | Evolved 2 slots: Propulsion x1, Weapon x1 1599 | -8/Materials | Led the pair of lost Derelicts to an unsafe place 1615 | -8/Materials | Garrison activated, responded to threat 1658 | -8/Materials | Core integrity fell below 50% 1670 | -8/Materials | Core integrity fell below 20% 1697 | -8/Materials | Lost 11 parts (1p6n1u3w) 1710 | -8/Materials | Core destroyed Last Messages --------------- 01666_ Dropped Lrg. Storage Unit. 01667_ Dropped Hcp. Battery. 01667_ U-05 Engineer lays Concrete. 01668_ Extracted 1 energy. 01669_ G-47 Trooper destroyed. 01669_ U-05 Engineer lays Concrete. 01674_ Acquired System Shield. 01684_ Connecting with Terminal... 01684_ Current location identified: Materials 01692_ ALERT: Hostiles spotted, dispatching reinforcements to Terminal M010. 01693_ ALERT: Hostiles spotted, dispatching reinforcements to Terminal M006. 01701_ Slammed into B-36 Bruiser. 01705_ Acquired Cesium-ion Thruster. 01709_ Cesium-ion Thruster destroyed. 01709_ System Shield destroyed. 01710_ Slammed into G-47 Trooper. 01710_ Destabilizing: Core damaged (-11). 01710_ Core Shielding destroyed. Map ----- +----------------------------------------------------+ | | | | | ????????????????????????????????????????????????? | | ????????????????????????????????????????????????? | | ????????????????????????????????????????????????? | | ????????????????????????????????????????????????? | | ????????????????????????????????????????????????? | | ????????????????????????????????????????????????? | | ????????????????????????????????????????????????? | | ????????????????????????????????????????????????? | | ????????????????????????????????????????????????? | | ????????????????????????????????????????????????? | | ????????????????????????????????????????????????? | | ????????????????????????????????????????????????? | | ????????????????????????????????????????????????? | | ????????????????????????????????????????????????? | | ????????????????????????????????????????????????? | | ????????????????????????????????????????????????? | | ????????????????????????????????????????????????? | | ????????????????????????????????????????????????? | | ????????????????????????????????????????????????? | | ????????????????????????????????????????????????? | | ???????????????#######??????????????????????????? | | ???????????????# #??##########??????????????? | | ???????????????# #### """ +??????????????? | | ???????????????# T gghg@"R" #??????????????? | | ???????????????# g####g" " #??????????????? | | ???????????????# #??#l #??????????????? | | ???????????????### ###??#bg #??????????????? | | ?????????????????# #????# """ +??????????????? | | ?????????????????# #????# """ #??????????????? | | ?????????????????# #????# """ # ?????????????? | | ?????????????????# #????# # ?????????????? | | ?????????????????# #????######## # #????????????? | | ?????????????????# #???????????### ????????????? | | ?????????????????# #???????????# ????????????? | | ?????????????????# #??????#????? #######?????? | | ?????????????????# #???? #?????# % #?????? | | ?????????????????# #??""" #?????? #?????? | | ??????????######## # """ ######## #?????? | | ??? + """ # # ! #?????? | | ??????????########+######## # #?????? | | ??????????????#] #????# "# #?????? | | ??????????????# #????# T# #?????? | | ??????????????# """" #?????!| "# #?????? | | ??????????????# """" #??????| # #?????? | | ??????????????+ """" #????####"######/#####?????? | | ??????????????# #????# = =% #??????? | | ????????# ####/########! = #??????? | | ????????# !! =%[! #??????? | +----------------------------------------------------+ Best States ------------- Heat Dissipation 31 Energy Generation 14 Energy Capacity 540 Matter Stores 300 Matter Capacity 300 Sight Range 16 Robot Scan Range 10 Terrain Scan Density 10 Core Shielding 20 Evasion (%) 50 Recoil Reduction 2 Defensive Hacking 10 Item Schematics ----------------- None Robot Schematics ------------------ None Fabricated ------------ Nothing Alien Tech Used ----------------- None Achievements -------------- None Challenges ------------ None Game ------ Seed FireAlloyCycler Manual? 0 Play Time 00:28:37 Cumulative 72.0 hours Start 2022.02.06 @ 21:09:01 End 2022.02.06 @ 22:05:24 Sessions 1 Manual Loads 0 Difficulty Rogue Special Mode None Game No. 82 Rogue 82 Adventurer 0 Explorer 0 Win Type - Total 0 Types 0/0/0/0/0/0/0/0/0 Lore% 48 Gallery% 52 Achievement% 35 Wizard Run 0 Options --------- ASCII 0 Keyboard 0 Movement Mouse Keybinds 0 Fullscreen 0 Font 32/Terminus Map View 76x50 Tactical HUD 1 Map Filters NONE Filters NONE Steam 1 RUN: 11b47ec3-ef22-4bb0-8412-faa17e2332e3